bitfinex/quotes_ETHUSD_20260202
["timestamp","ask_amount","ask_price","bid_price","bid_amount"]
[1769996573103,12.72257964,2310.5,2309.1,1.08264972]
[1769996573302,1.27358244,2310.4,2309.1,1.08264972]
[1769996573889,13.99616208,2310.4,2309.1,1.08264972]
[1769996574095,1.27358244,2310.4,2309.1,1.08264972]
[1769996574299,14.1114793,2310.8,2309.1,1.08264972]
[1769996574300,0.1024,2310.7,2309.1,1.09589446]
[1769996574695,16.22672469,2310.6,2309.1,1.08264972]
[1769996574891,13.80454969,2310.6,2309.1,1.08264972]
[1769996575081,1.08197005,2310.6,2309.3,0.01324474]
[1769996575287,0.54098503,2310.5,2309.4,0.01324474]
[1769996575990,13.80453013,2310.7,2309.2,0.01324474]
[1769996576170,13.80453013,2310.7,2309.1,1.08264972]
[1769996576371,12.72257964,2310.5,2309.0,1.08269019]
[1769996576575,1.08215738,2310.2,2309.0,4.33069161]
[1769996576771,1.81333666,2310.1,2309.0,4.33069161]
[1769996577506,14.5359163,2310.1,2308.9,1.08274516]
[1769996577918,1.81333666,2310.1,2308.9,1.0959899]
[1769996578217,4.32862955,2310.3,2308.9,1.08274516]
[1769996578218,1.08214244,2310.3,2308.9,1.08274516]
[1769996578421,1.08214244,2310.3,2309.0,0.01324474]
[1769996578714,1.08214244,2310.3,2308.9,1.0959899]
[1769996579127,13.80472208,2310.3,2308.9,1.08274516]
[1769996579319,0.0011,2309.9,2308.9,1.08274516]
[1769996579618,0.0011,2309.9,2309.1,0.01324474]
[1769996579822,0.0011,2309.9,2309.0,0.01324474]
[1769996580023,0.0011,2309.9,2309.1,0.01324474]
[1769996580220,0.0011,2309.9,2309.0,0.01324474]
[1769996580525,12.72367964,2309.9,2308.3,6.80104248]
[1769996580722,1.08341076,2309.9,2308.6,1.09615212]
[1769996580916,1.08341005,2309.9,2308.9,0.01324474]
[1769996581092,0.0011,2309.9,2309.4,0.01324474]
[1769996581298,0.0011,2309.9,2309.7,0.01324474]
[1769996581641,0.0011,2310.1,2309.8,0.01324474]
[1769996581996,1.08332187,2310.1,2308.4,13.84662774]
[1769996582197,1.08332187,2310.1,2308.3,2.45571773]
[1769996582198,12.72257964,2309.7,2308.3,2.45571773]
[1769996582506,13.63057964,2309.6,2308.4,0.01324474]
[1769996582697,1.08248538,2309.5,2308.4,1.08297545]
[1769996582897,1.08248538,2309.5,2308.5,0.01324474]
[1769996583111,1.99045939,2309.6,2308.7,0.01324474]
[1769996583429,1.99045939,2309.6,2308.4,1.08297545]
[1769996583599,1.99045939,2309.6,2308.3,2.45571773]
[1769996583800,14.71303903,2309.6,2308.3,3.53875238]
[1769996583995,1.90426553,2309.5,2308.3,3.53875238]
[1769996584200,1.90426553,2309.5,2308.3,2.45571773]
[1769996584407,14.62684517,2309.5,2308.3,2.45571773]
[1769996584823,12.72257964,2309.3,2308.3,2.45571773]
[1769996585136,12.72257964,2309.3,2308.0,0.001]
[1769996585440,12.72257964,2308.8,2307.1,4.33432846]
[1769996585730,0.908,2308.7,2307.9,1.0832183]
[1769996585931,0.908,2308.7,2307.3,0.01324474]
[1769996586105,0.908,2308.7,2307.6,1.08336667]
[1769996586305,0.908,2308.7,2307.2,0.01324474]
[1769996586521,0.908,2308.7,2307.7,1.08330462]
[1769996586727,1.08290738,2308.6,2307.4,1.08347057]
[1769996587039,1.08290738,2308.6,2307.0,0.001]
[1769996587040,12.72257964,2308.4,2307.0,0.001]
[1769996587228,12.72257964,2308.4,2307.2,1.08355844]
[1769996587527,0.63225369,2308.5,2307.0,0.001]
[1769996587528,13.46719963,2308.2,2307.0,0.001]
[1769996587736,11.22262011,2308.5,2307.0,0.001]
[1769996587737,14.37519963,2308.1,2307.0,0.001]
[1769996588113,13.56959963,2308.0,2306.5,1.08385831]
[1769996588436,13.56959963,2308.0,2306.6,1.0838142]
[1769996588609,19.27796863,2307.9,2306.5,1.08386087]
[1769996588842,13.56959963,2307.7,2305.7,0.01324474]
[1769996589007,13.56959963,2307.7,2305.4,10.59036642]
[1769996589008,13.56959963,2307.4,2306.1,1.08407789]
[1769996589347,0.908,2307.3,2306.2,1.08403263]
[1769996589528,0.908,2307.3,2306.0,4.33648328]
[1769996589714,0.908,2307.3,2306.2,1.08403179]
[1769996589920,1.43751996,2307.2,2305.9,1.08415284]
[1769996590117,1.43751996,2307.2,2305.5,0.01324474]
[1769996590349,1.43751996,2307.2,2306.1,1.08407817]
[1769996590554,1.43751996,2307.2,2306.2,1.08400827]
[1769996590713,0.908,2307.3,2306.2,1.08400827]
[1769996590913,1.08356449,2307.2,2305.7,1.08425129]
[1769996591128,1.08356449,2307.2,2305.8,0.01324474]
[1769996591737,1.08354994,2307.3,2306.1,0.01324474]
[1769996592042,1.71611023,2307.3,2306.1,0.01324474]
[1769996592528,0.62408654,2307.4,2306.1,0.01324474]
[1769996592840,1.08352625,2307.3,2306.1,0.01324474]
[1769996593136,0.62408654,2307.4,2306.2,1.08403434]
[1769996593439,0.62408654,2307.4,2306.3,0.54334164]
[1769996593637,1.70758252,2307.4,2306.3,0.54334164]
[1769996593846,1.70758252,2307.4,2306.2,1.08403434]
[1769996594046,1.70758252,2307.4,2306.1,1.08408039]
[1769996594745,1.70758252,2307.4,2305.9,4.33663692]
[1769996594746,17.55015463,2307.3,2306.0,1.08411811]
[1769996594943,13.46719963,2307.3,2306.0,1.08411811]
[1769996595259,1.08361146,2307.1,2305.9,4.33664353]
[1769996595442,4.95813536,2307.4,2305.9,4.33664353]
[1769996595742,1.08351753,2307.3,2305.9,4.33664353]
[1769996596144,1.08351753,2307.3,2305.9,1.08417537]
[1769996596640,13.48044437,2307.2,2305.8,1.99220468]
[1769996596839,13.48044437,2307.2,2305.8,2.62513053]
[1769996596840,14.08593413,2307.2,2305.8,2.62513053]
[1769996597042,14.07268939,2307.2,2305.8,2.62513053]
[1769996597239,1.08361146,2307.1,2305.8,2.62513053]
[1769996598627,4.9399356,2307.2,2305.8,2.62513053]
[1769996598628,1.68908844,2307.2,2305.8,15.4828547]
[1769996598953,1.0835446,2307.3,2305.9,14.099486]
[1769996599153,0.62408654,2307.4,2306.3,1.08398733]
[1769996599370,5.03540421,2307.9,2306.3,13.9417115]
[1769996599371,1.08328278,2307.8,2306.3,13.9417115]
[1769996599531,1.08328278,2307.8,2306.4,0.01324474]
[1769996599727,1.08328278,2307.8,2306.4,0.63292585]
[1769996600428,13.46719963,2307.6,2306.4,0.63292585]
[1769996600628,13.48044437,2307.4,2306.2,1.08403401]
[1769996600853,0.908,2307.3,2306.2,1.08403401]
[1769996601367,1.99135998,2307.7,2306.1,12.85772417]
[1769996601656,1.99135998,2307.7,2306.0,4.3493821]
[1769996602040,1.99135998,2307.7,2306.1,12.84447943]
[1769996602226,1.99135998,2307.7,2306.2,12.85772417]
[1769996603163,1.99135998,2307.7,2306.3,1.08398733]
[1769996605469,1.99133548,2307.7,2306.3,13.92846676]
[1769996605982,1.99133548,2307.7,2306.3,1.08398733]
[1769996606483,0.01324474,2307.3,2306.2,1.08400199]
[1769996606685,0.01324474,2307.2,2306.2,1.08400199]
[1769996606977,0.908,2307.1,2306.2,1.62602983]
[1769996608071,0.908,2307.1,2306.5,0.001]
[1769996609053,1.08450247,2307.6,2306.5,0.001]
[1769996609497,0.0011,2307.6,2306.5,0.001]
[1769996609659,0.0011,2307.6,2306.5,13.75347943]
[1769996609863,0.5999403,2307.9,2306.7,12.85772417]
[1769996610074,0.5999403,2307.9,2306.9,12.84447943]
[1769996610262,0.5999403,2307.9,2307.0,27.34447943]
[1769996610655,0.63225369,2308.5,2307.1,12.84447943]
[1769996610962,15.45800023,2308.9,2307.2,13.75247943]
[1769996611167,0.908,2308.9,2307.3,0.01324474]
[1769996611483,1.99078407,2308.9,2307.5,1.08342361]
[1769996612088,0.908,2308.9,2307.5,13.92790304]
[1769996612385,0.0011,2309.1,2307.5,13.94114778]
[1769996612586,0.0011,2309.1,2307.7,12.84447943]
[1769996613293,0.0011,2309.1,2307.9,12.84447943]
[1769996613470,0.0011,2309.1,2308.0,13.75247943]
[1769996613657,0.0011,2309.1,2308.1,15.58314197]
[1769996614886,0.0011,2309.1,2308.0,1.08315668]
[1769996615185,0.01324474,2308.9,2307.8,1.08325533]
[1769996615384,0.01324474,2308.9,2307.9,1.08323351]
[1769996615562,1.08271979,2309.0,2307.8,1.08328278]
[1769996616274,1.09596453,2309.0,2307.8,1.08328278]
[1769996617586,1.09596453,2309.0,2307.7,18.83313112]
[1769996617587,0.01324474,2308.9,2306.7,9.77437267]
[1769996617762,12.97698893,2308.3,2306.8,1.41360907]
[1769996617958,1.47194755,2308.2,2307.1,1.08357957]
[1769996618169,0.92124474,2308.2,2306.6,4.33537355]
[1769996618393,0.92124474,2308.2,2307.0,1.08362001]
[1769996618756,0.92124474,2308.2,2307.1,1.08357883]
[1769996618961,1.39114784,2308.1,2307.2,1.08356379]
[1769996619161,1.39114784,2308.1,2307.4,1.08344877]
[1769996619362,0.858,2308.2,2307.2,1.08353631]
[1769996619587,0.858,2308.2,2307.1,1.08358133]
[1769996619795,1.08314197,2308.1,2306.7,4.33506425]
[1769996620092,0.01324474,2307.8,2306.7,1.08379936]
[1769996620677,0.01324474,2307.8,2306.6,1.08382073]
[1769996620989,0.01324474,2307.8,2306.5,0.001]
[1769996620990,12.99023367,2307.7,2306.5,0.001]
[1769996621189,2.22159258,2307.6,2306.5,0.001]
[1769996621362,0.01324474,2307.5,2306.5,0.001]
[1769996621560,0.01324474,2307.4,2306.5,0.001]
[1769996621773,1.08356449,2307.2,2306.5,0.001]
[1769996622471,1.08356449,2307.2,2307.0,0.001]
[1769996622673,0.54310672,2307.1,2306.5,0.001]
[1769996623185,2.38375302,2307.6,2306.5,0.001]
[1769996623385,1.08340518,2307.6,2306.5,0.001]
[1769996624096,12.99023367,2307.5,2306.5,0.001]
[1769996624282,0.01324474,2307.4,2306.5,0.001]
[1769996625180,0.01324474,2307.4,2306.0,0.001]
[1769996625181,12.99023367,2307.0,2306.0,0.001]
[1769996625368,13.89823367,2306.9,2306.0,0.001]
[1769996625693,0.01324474,2306.7,2306.0,0.001]
[1769996625899,0.01324474,2306.4,2305.5,0.001]
[1769996626100,0.92124474,2306.3,2305.3,0.001]
[1769996626299,0.01324474,2306.2,2305.3,0.001]
[1769996626808,0.908,2306.3,2305.3,0.001]
[1769996627100,0.92124474,2306.3,2305.3,0.001]
[1769996627298,0.01324474,2306.2,2305.3,0.001]
[1769996627602,0.908,2306.3,2305.3,0.001]
[1769996627989,1.08403434,2306.2,2305.3,0.001]
[1769996628206,0.632816,2306.1,2305.3,0.001]
[1769996628526,0.908,2306.3,2305.3,0.001]
[1769996629580,0.92124474,2306.3,2305.3,0.001]
[1769996629776,0.908,2306.3,2305.3,0.001]
[1769996630410,1.08368952,2307.0,2305.3,12.92953274]
[1769996630713,1.99268952,2307.0,2305.5,12.92853274]
[1769996631007,1.99268952,2307.0,2305.6,14.5]
[1769996631183,1.99266613,2307.0,2305.6,14.5]
[1769996631511,5.85967218,2307.4,2305.8,0.01324474]
[1769996631512,1.41001283,2307.4,2305.8,0.01324474]
[1769996631809,0.909,2307.8,2306.3,12.92853274]
[1769996631979,0.909,2307.8,2306.4,14.01247307]
[1769996632181,0.01324474,2308.4,2306.6,12.92853274]
[1769996632414,0.01324474,2308.1,2306.5,14.5]
[1769996632621,0.01324474,2308.1,2306.4,1.08394033]
[1769996632814,13.57512836,2308.2,2306.4,14.01247307]
[1769996633106,1.44973731,2308.1,2306.6,14.5]
[1769996633930,1.44973731,2308.1,2306.6,27.42853274]
[1769996634111,1.08323584,2307.9,2306.7,1.08379936]
[1769996634681,1.09648058,2307.9,2306.6,15.58381478]
[1769996634908,1.09648058,2307.9,2306.6,1.08381478]
[1769996634909,4.11714274,2307.8,2306.6,1.08381478]
[1769996635213,0.01324474,2307.6,2306.5,0.49083441]
[1769996635391,0.01324474,2307.6,2306.3,1.99296237]
[1769996635392,0.01324474,2307.4,2306.3,1.99296237]
[1769996635709,0.01324474,2307.4,2306.2,4.33609207]
[1769996635878,0.01324474,2307.4,2306.3,1.08395854]
[1769996636081,1.08351753,2307.3,2306.1,1.08408134]
[1769996636282,0.54308324,2307.2,2306.1,1.08408134]
[1769996637130,0.01324474,2308.0,2306.1,14.01261408]
[1769996637287,1.99234337,2307.7,2306.1,14.01261408]
[1769996637490,1.99234337,2307.7,2306.1,14.02585882]
[1769996637704,0.909,2307.7,2306.1,14.02585882]
[1769996637912,0.0011,2307.9,2306.3,12.94177748]
[1769996638128,0.0011,2307.9,2306.6,14.01237909]
[1769996639315,0.0011,2307.9,2306.7,14.5]
[1769996640322,0.0011,2307.9,2306.8,14.01228512]
[1769996640525,0.0011,2307.9,2306.8,1.08375238]
[1769996641020,0.01324474,2307.7,2306.7,1.08379456]
[1769996641239,0.01324474,2307.4,2306.3,1.08396039]
[1769996641398,0.01324474,2307.2,2306.3,1.08398725]
[1769996641904,0.01324474,2307.2,2305.5,12.92953274]
[1769996642119,0.01324474,2306.8,2305.7,1.08422898]
[1769996642296,0.01324474,2306.8,2305.6,4.33712182]
[1769996642297,1.08379936,2306.7,2305.6,4.33712182]
[1769996642501,0.54322416,2306.6,2305.8,1.08421745]
[1769996642697,0.54322416,2306.6,2305.5,4.33838504]
[1769996642899,0.54322416,2306.6,2305.5,1.08534184]
[1769996643104,0.01324474,2306.5,2305.5,1.08534751]
[1769996643395,0.5564689,2306.6,2305.5,0.001]
[1769996643592,0.5564689,2306.6,2305.8,1.0842177]
[1769996643593,0.54322416,2306.6,2305.8,1.0842177]
[1769996643796,0.54322416,2306.6,2305.7,1.08423553]
[1769996644403,1.08389334,2306.5,2305.5,0.001]
[1769996644626,0.59626909,2306.4,2305.5,0.001]
[1769996645126,1.09680923,2307.3,2305.5,12.92953274]
[1769996645327,0.909,2307.2,2305.5,12.92953274]
[1769996645800,0.909,2307.2,2305.7,12.94177748]
[1769996646439,0.909,2307.2,2305.8,1.08422239]
[1769996646630,0.909,2307.2,2305.9,1.45243567]
[1769996646931,1.99257236,2307.2,2305.9,1.45243567]
[1769996647229,0.909,2307.2,2305.9,14.38096841]
[1769996647431,1.08328278,2307.8,2306.1,12.92853274]
[1769996647633,1.08328278,2307.8,2305.9,1.46568041]
[1769996647634,1.08328278,2307.8,2306.3,13.72359088]
[1769996647820,0.0011,2307.0,2306.3,13.72359088]
[1769996648020,0.0011,2307.0,2306.2,1.29417775]
[1769996648225,0.0011,2307.0,2305.9,14.63259088]
[1769996648413,0.0011,2307.0,2305.9,0.909]
[1769996648734,0.0011,2307.0,2306.0,1.08412836]
[1769996649041,0.0011,2307.0,2306.0,14.80771924]
[1769996649613,0.0011,2307.0,2305.9,5.24551344]
[1769996649614,22.7686924,2306.7,2305.5,0.001]
[1769996649815,0.01324474,2306.0,2305.5,0.001]
[1769996650218,0.01324474,2305.9,2305.5,0.001]
[1769996650828,1.08396647,2306.4,2305.5,0.001]
[1769996651160,1.0969851,2306.9,2305.5,0.001]
[1769996651309,1.09802494,2307.0,2305.5,13.72459088]
[1769996651510,0.01324474,2306.7,2305.6,1.37245909]
[1769996651712,0.01324474,2306.8,2305.6,1.37245909]
[1769996652113,0.01324474,2306.9,2305.6,1.37245909]
[1769996652785,0.01324474,2306.8,2305.7,1.08426941]
[1769996652942,1.09699854,2306.8,2305.7,1.08426941]
[1769996653264,0.55917345,2306.8,2305.8,0.50222859]
[1769996653480,0.01324474,2306.8,2305.8,0.50222859]
[1769996653645,1.08476383,2307.0,2305.8,0.50222859]
[1769996653841,0.0011,2307.0,2305.8,0.50222859]
[1769996654383,0.0011,2307.0,2305.8,15.13481947]
[1769996654558,0.01324474,2306.9,2305.8,15.13481947]
[1769996654750,0.01324474,2306.8,2305.9,2.45663446]
[1769996655149,1.6415846,2306.9,2305.9,2.45663446]
[1769996655150,0.54459017,2306.9,2305.9,2.45663446]
[1769996655344,0.0011,2307.0,2305.9,2.45663446]
[1769996655570,0.01324474,2306.9,2305.9,2.45663446]
[1769996656260,0.01324474,2306.5,2305.8,1.08421033]
[1769996656466,0.01324474,2306.3,2305.7,1.08426897]
[1769996656782,0.01324474,2306.2,2305.5,0.001]
[1769996657084,0.01324474,2305.9,2305.5,0.001]
[1769996657649,0.01324474,2305.8,2305.5,0.001]
[1769996658258,0.01324474,2306.2,2305.5,0.001]
[1769996659083,0.5592077,2306.2,2305.5,0.001]
[1769996659284,0.01324474,2306.1,2305.5,0.001]
[1769996659483,1.08382156,2306.7,2305.5,0.001]
[1769996659881,0.01324474,2306.6,2305.5,0.001]
[1769996660059,0.01324474,2306.5,2305.5,0.001]
[1769996660581,0.54585695,2306.6,2305.5,13.72459088]
[1769996660787,1.09700261,2306.8,2305.6,1.08431644]
[1769996660957,1.09700261,2306.8,2305.7,0.001]
[1769996661162,0.01324474,2306.7,2305.7,0.001]
[1769996661354,0.01324474,2306.4,2305.7,0.001]
[1769996661555,0.01324474,2306.2,2305.7,0.001]
[1769996661760,0.01324474,2306.1,2305.7,0.001]
[1769996662589,0.01324474,2306.5,2305.7,0.001]
[1769996662787,1.08398733,2306.3,2305.7,0.001]
[1769996662996,0.54329936,2306.2,2305.7,0.001]
[1769996663801,0.01324474,2306.1,2305.7,0.001]
[1769996664164,0.54329936,2306.2,2305.7,0.001]
[1769996664393,0.5565441,2306.2,2305.7,0.001]
[1769996664596,0.01324474,2306.1,2305.3,0.001]
[1769996664802,0.01324474,2305.7,2305.3,0.001]
[1769996664972,0.01324474,2305.6,2304.9,0.001]
[1769996665175,0.01324474,2305.4,2304.9,0.001]
[1769996665390,0.01324474,2305.3,2304.9,0.001]
[1769996665884,0.01324474,2305.0,2304.5,0.001]
[1769996666084,0.01324474,2304.9,2304.5,0.001]
[1769996666279,0.01324474,2304.8,2304.3,0.001]
[1769996666479,0.01324474,2305.2,2304.4,4.33946989]
[1769996666792,1.993507,2305.2,2304.3,0.001]
[1769996666980,0.63445961,2305.1,2304.3,0.001]
[1769996667401,1.99343573,2305.4,2304.3,0.001]
[1769996667810,1.64360874,2305.7,2304.3,0.001]
[1769996667998,1.99328086,2305.7,2304.3,0.001]
[1769996668199,0.909,2305.7,2304.3,13.72459088]
[1769996668589,1.99327099,2305.7,2304.3,13.72459088]
[1769996668798,0.909,2305.7,2304.4,1.08488109]
[1769996669004,2.00650218,2305.8,2304.4,14.80847197]
[1769996669400,1.99325744,2305.8,2304.4,14.80847197]
[1769996669686,0.54329936,2306.2,2304.4,14.80847197]
[1769996669890,0.01324474,2306.5,2304.6,13.72359088]
[1769996670122,0.01324474,2306.4,2304.6,13.72359088]
[1769996670498,0.01324474,2306.5,2304.6,13.72359088]
[1769996670700,1.99282895,2306.7,2304.7,0.01324474]
[1769996670903,0.909,2306.7,2304.8,14.82152843]
[1769996671091,0.01324474,2306.9,2305.0,13.72359088]
[1769996671416,0.01324474,2306.8,2305.0,13.72359088]
[1769996671616,0.01324474,2306.6,2305.0,13.72359088]
[1769996671922,0.01324474,2306.5,2305.0,13.72359088]
[1769996672087,0.01324474,2306.2,2305.0,13.72359088]
[1769996672419,0.01324474,2306.1,2305.0,13.72359088]
[1769996672602,0.01324474,2306.2,2305.0,13.72359088]
[1769996672919,0.01324474,2306.3,2305.1,1.08455164]
[1769996673114,1.09723686,2306.3,2305.1,1.08455164]
[1769996673488,0.01324474,2306.1,2305.1,1.08455164]
[1769996673795,0.01324474,2306.3,2305.1,1.08455164]
[1769996674000,0.01324474,2306.5,2305.2,13.72459088]
[1769996674332,0.01324474,2306.2,2305.2,0.001]
[1769996674623,0.01324474,2306.0,2305.2,0.001]
[1769996674849,0.01324474,2306.3,2305.2,0.001]
[1769996674990,0.01324474,2306.3,2305.2,0.54347582]
[1769996675801,0.01324474,2306.2,2305.2,0.54347582]
[1769996676126,0.01324474,2306.2,2305.2,0.001]
[1769996677147,1.09729658,2306.2,2305.2,0.001]
[1769996677294,0.01434474,2306.4,2305.2,0.001]
[1769996677496,0.0011,2306.4,2305.2,13.72459088]
[1769996677729,1.08504804,2306.4,2305.2,13.72459088]
[1769996677908,0.01324474,2306.0,2305.2,0.001]
[1769996678121,0.01324474,2305.8,2305.2,0.001]
[1769996678302,0.01324474,2305.7,2305.2,0.001]
[1769996678691,0.01324474,2305.6,2305.2,0.001]
[1769996679496,0.01324474,2305.4,2304.4,1.08484552]
[1769996679694,0.01324474,2305.3,2304.4,1.08484552]
[1769996679919,0.01324474,2305.5,2304.4,1.08484552]
[1769996680095,0.61396803,2305.5,2304.4,1.08484552]
[1769996680291,0.01324474,2305.4,2304.4,1.08484552]
[1769996680496,0.01324474,2305.3,2304.4,1.08484552]
[1769996680937,0.01324474,2305.1,2304.3,1.08589887]
[1769996681124,0.01324474,2304.9,2304.3,1.08589887]
[1769996681431,1.09789139,2304.9,2304.3,0.001]
[1769996681617,1.68512216,2305.5,2304.3,0.001]
[1769996681819,1.09764361,2305.5,2304.3,0.001]
[1769996682195,2.00652079,2305.7,2304.3,13.74883524]
[1769996682440,0.01324474,2305.6,2304.3,13.74883524]
[1769996682635,0.01324474,2305.7,2304.3,14.65783524]
[1769996682793,13.88286925,2306.1,2304.3,14.65783524]
[1769996682794,1.16772291,2306.4,2304.3,14.65783524]
[1769996682995,0.01324474,2306.1,2304.5,13.74783524]
[1769996683195,0.01324474,2305.8,2304.5,13.74783524]
[1769996683396,0.01324474,2305.9,2304.5,13.74783524]
[1769996683699,0.01324474,2305.6,2304.6,1.08478694]
[1769996684097,0.01324474,2305.5,2304.6,1.08478694]
[1769996684314,0.01324474,2305.4,2304.6,1.08478694]
[1769996685400,0.01324474,2305.5,2304.6,1.08478694]
[1769996685601,0.01324474,2305.6,2304.5,4.33914779]
[1769996685937,0.01324474,2305.4,2304.4,4.33914779]
[1769996686804,0.63699301,2305.6,2304.5,0.001]
[1769996687008,0.01324474,2305.7,2304.5,0.001]
[1769996687598,0.01324474,2305.1,2304.5,0.001]
[1769996687823,0.01324474,2304.8,2304.3,0.001]
[1769996688028,0.01324474,2304.7,2304.3,0.001]
[1769996688602,0.01324474,2305.0,2304.4,1.08487822]
[1769996688802,0.909,2305.1,2304.4,1.08487822]
[1769996689545,0.909,2305.1,2303.8,4.34064264]
[1769996689546,13.05165678,2304.4,2303.4,0.001]
[1769996689701,0.01324474,2303.7,2303.5,1.08530497]
[1769996689905,1.08477199,2304.7,2303.5,1.08530497]
[1769996690109,1.99377199,2304.7,2303.5,1.08530497]
[1769996690321,1.99377199,2304.7,2303.5,1.09854971]
[1769996691123,0.909,2304.7,2303.5,14.21777283]
[1769996691324,0.909,2304.8,2303.7,0.01324474]
[1769996691623,0.1024,2305.1,2303.8,1.08516364]
[1769996691836,2.30561779,2305.2,2304.0,0.01324474]
[1769996692239,1.22110025,2305.2,2304.0,0.01324474]
[1769996692420,0.31210025,2305.2,2304.2,0.01324474]
[1769996692950,0.31210025,2305.2,2304.0,0.01324474]
[1769996693140,1.39660668,2305.2,2304.1,0.01324474]
[1769996693342,0.31210025,2305.2,2304.2,0.01324474]
[1769996693852,0.31210025,2305.2,2304.5,0.01324474]
[1769996694060,0.31210025,2305.2,2304.7,0.01324474]
[1769996694224,1e-08,2305.2,2304.7,0.01324474]
[1769996694630,1e-08,2305.2,2304.6,0.01324474]
[1769996695551,1e-08,2305.2,2304.5,1.42438855]
[1769996695756,1e-08,2305.2,2304.6,1.08478694]
[1769996696639,1e-08,2305.2,2304.0,13.13246786]
[1769996696845,1e-08,2305.2,2304.2,1.08494148]
[1769996697224,1e-08,2305.2,2304.2,1.08497069]
[1769996698257,1.0845046,2305.2,2303.8,4.34051984]
[1769996698453,1.0845046,2305.2,2303.9,1.08511564]
[1769996698454,14.89907476,2305.1,2303.9,1.08511564]
[1769996698630,0.909,2305.0,2304.0,1.08506893]
[1769996699458,0.90900001,2305.2,2304.0,1.09831367]
[1769996700444,0.90900001,2305.2,2304.0,1.08506893]
[1769996700445,1.08455164,2305.1,2304.0,1.08506893]
[1769996700628,0.63317582,2305.0,2304.0,1.08506893]
[1769996700825,0.63317582,2305.0,2304.1,0.01324474]
[1769996701026,0.0011,2305.0,2304.4,0.01324474]
[1769996701358,0.0011,2305.0,2304.0,1.08506893]
[1769996702330,0.0011,2305.0,2303.9,4.34027777]
[1769996702535,0.0011,2305.0,2303.9,1.08511654]
[1769996702844,0.0011,2305.0,2303.8,1.08512978]
[1769996703750,0.0011,2305.0,2303.8,15.19558244]
[1769996703982,0.0011,2305.0,2303.9,13.13246786]
[1769996704339,1.08569869,2305.0,2304.0,1.08506944]
[1769996704541,1.08569869,2305.0,2303.9,1.08509948]
[1769996704846,0.63329803,2304.9,2303.9,1.08509948]
[1769996705549,0.0011,2305.0,2303.9,14.2043226]
[1769996705874,0.0011,2305.0,2304.1,13.11922312]
[1769996706183,5.88722332,2306.1,2304.1,13.11922312]
[1769996706184,0.0011,2306.1,2305.0,13.11922312]
[1769996706388,0.0011,2306.1,2305.3,1.08445755]
[1769996706546,0.0011,2306.1,2305.2,1.08448997]
[1769996706750,0.0011,2306.1,2305.1,1.08451819]
[1769996706978,0.0011,2306.1,2305.2,1.08449865]
[1769996708445,0.0011,2306.1,2304.9,4.33857342]
[1769996708849,0.0011,2306.1,2304.8,1.08469281]
[1769996709045,0.0011,2306.1,2304.8,2.06091634]
[1769996709455,0.909,2306.0,2304.8,1.08469281]
[1769996710358,0.0011,2306.1,2304.8,14.87300116]
[1769996710560,0.0011,2306.1,2305.0,13.80155309]
[1769996710749,0.0011,2306.1,2305.2,13.78830835]
[1769996711181,0.0011,2306.1,2304.8,14.87300116]
[1769996711898,0.0011,2306.1,2304.8,1.08469281]
[1769996712467,1.08412836,2306.0,2304.7,4.33877125]
[1769996712759,12.80809331,2306.0,2304.7,1.08473987]
[1769996713079,18.52165738,2305.9,2304.7,1.08473987]
[1769996713254,13.29886138,2305.9,2304.6,1.08475155]
[1769996713460,12.70569331,2305.7,2304.6,1.08475155]
[1769996713686,0.909,2305.6,2304.6,1.08475155]
[1769996713994,18.48046105,2305.5,2304.1,1.08598588]
[1769996714178,12.71893805,2305.4,2304.2,1.08493356]
[1769996714354,12.71893805,2305.4,2304.1,0.001]
[1769996714355,12.71893805,2305.2,2304.1,0.001]
[1769996714556,13.790292,2305.0,2304.1,0.001]
[1769996714804,0.909,2304.9,2304.1,0.001]
[1769996715163,12.71893805,2304.5,2303.5,0.43329991]
[1769996715355,2.2504778,2304.4,2303.5,1.08630342]
[1769996715581,0.909,2304.3,2303.5,1.08630342]
[1769996715751,0.909,2304.3,2303.5,0.001]
[1769996717403,1.99393094,2304.3,2303.5,0.001]
[1769996718056,1.08490942,2304.4,2303.5,0.001]
[1769996718260,1.99377592,2304.7,2303.5,0.001]
[1769996718483,0.64350915,2304.6,2303.5,0.001]
[1769996718687,0.909,2304.7,2303.5,0.001]
[1769996718875,14.69944143,2304.7,2303.5,0.001]
[1769996719056,14.71268617,2304.7,2303.5,0.001]
[1769996719261,0.01324474,2304.6,2303.5,0.001]
[1769996719768,14.69944143,2304.7,2303.5,0.001]
[1769996720092,1.90516457,2304.6,2303.5,0.001]
[1769996720291,14.61085788,2304.6,2303.5,0.001]
[1769996720790,27.48350107,2304.5,2303.5,0.001]
[1769996721093,13.80377207,2304.5,2303.5,0.001]
[1769996722024,0.1024,2304.4,2303.3,0.001]
[1769996722162,0.1024,2304.4,2303.1,0.001]
[1769996722163,0.01324474,2304.1,2303.1,0.001]
[1769996722490,0.92224474,2304.0,2303.1,0.001]
[1769996722657,1.08511654,2303.9,2303.1,0.001]
[1769996723765,1.08511654,2303.9,2302.6,0.001]
[1769996723766,0.01324474,2303.6,2302.6,0.001]
[1769996723996,12.71893805,2303.6,2302.6,0.001]
[1769996724179,12.70569331,2303.6,2302.6,1.08672706]
[1769996724378,12.70569331,2303.6,2302.6,0.001]
[1769996724688,1.08535208,2303.4,2302.6,0.001]
[1769996724889,1.45400052,2303.3,2302.6,0.001]
[1769996725690,0.54400052,2303.3,2302.6,0.001]
[1769996725991,0.91,2303.7,2302.6,0.001]
[1769996726571,0.63478274,2303.8,2302.8,13.78930835]
[1769996726772,9.78583994,2304.7,2302.8,13.78930835]
[1769996726773,1.09798461,2304.7,2303.0,13.78830835]
[1769996726972,0.0011,2304.4,2303.0,13.78830835]
[1769996727375,0.01324474,2304.3,2302.9,1.08558773]
[1769996727703,0.01324474,2303.8,2302.8,0.001]
[1769996727912,0.01324474,2303.4,2302.8,0.001]
[1769996728113,0.91,2303.7,2302.8,1.08661439]
[1769996728316,0.1024,2304.0,2302.8,1.08661439]
[1769996728478,0.91,2303.9,2302.8,1.08661439]
[1769996728678,0.91,2303.9,2302.8,2.06390084]
[1769996729078,0.91,2304.3,2302.8,15.85220919]
[1769996729406,0.01324474,2304.2,2302.8,15.85220919]
[1769996729580,0.01324474,2304.0,2302.8,30.35220919]
[1769996729782,0.01324474,2303.9,2302.8,15.85220919]
[1769996730101,0.01324474,2304.1,2302.9,0.89740123]